bitfinex/quotes_ETHUSD_20260107
["timestamp","ask_amount","ask_price","bid_price","bid_amount"]
[1767751790395,4.04236656,3244.4,3243.5,0.96329587]
[1767751791887,4.04236656,3244.4,3243.5,4.04636193]
[1767751794278,4.04236656,3244.4,3243.6,0.96129587]
[1767751794461,0.79177257,3244.3,3243.6,0.96129587]
[1767751795564,0.79177257,3244.3,3243.8,0.002]
[1767751795880,0.001,3244.1,3243.8,0.002]
[1767751804756,0.93445477,3244.1,3243.8,0.002]
[1767751804956,0.93345477,3244.0,3243.4,0.002]
[1767751805181,0.93345477,3243.6,3242.7,0.9440088]
[1767751805978,0.93345477,3243.6,3242.7,0.002]
[1767751806176,0.93345477,3243.5,3242.7,0.002]
[1767751807063,0.93345477,3243.8,3242.8,0.9420088]
[1767751807290,3.0827667,3243.9,3243.0,0.9420088]
[1767751807493,0.001,3244.1,3243.1,0.9420088]
[1767751807664,4.01699943,3244.1,3243.1,0.97284349]
[1767751808164,4.01699943,3244.1,3243.1,0.9420088]
[1767751808762,7.09954409,3244.1,3243.1,0.9420088]
[1767751808961,1.64340918,3244.0,3243.1,0.9420088]
[1767751809159,3.08270908,3243.9,3243.1,0.9420088]
[1767751809361,1.64340918,3244.0,3243.2,0.9420088]
[1767751809662,4.72605877,3244.0,3243.2,0.9420088]
[1767751810296,1.64340918,3244.0,3243.2,0.9420088]
[1767751810467,3.08359961,3244.1,3243.2,0.9420088]
[1767751810993,0.001,3244.1,3243.3,0.97284159]
[1767751811810,0.001,3244.1,3243.3,4.05605631]
[1767751812006,0.001,3244.1,3243.4,0.9420088]
[1767751812208,0.001,3244.1,3243.4,0.9400088]
[1767751814000,0.001,3244.1,3243.4,4.02319162]
[1767751814203,0.001,3244.1,3243.4,0.9400088]
[1767751815697,0.001,3244.1,3243.4,4.02316636]
[1767751816013,0.001,3244.1,3243.4,4.73689724]
[1767751817399,0.001,3244.1,3243.5,0.9420088]
[1767751819595,0.001,3244.1,3243.5,4.02508527]
[1767751819796,0.001,3243.8,3243.5,4.02508527]
[1767751820019,0.93445477,3244.1,3243.5,3.08307647]
[1767751820222,0.808,3244.5,3243.6,1.32168954]
[1767751820423,0.001,3245.4,3243.6,0.9420088]
[1767751820424,0.93345477,3245.3,3243.6,0.9420088]
[1767751820628,0.93345477,3245.1,3243.6,0.9420088]
[1767751821617,0.93345477,3244.9,3243.7,3.08289915]
[1767751821816,0.93345477,3244.9,3243.7,6.1657983]
[1767751822698,0.93345477,3244.9,3243.7,7.1078071]
[1767751822897,0.93345477,3244.9,3243.8,0.71078071]
[1767751823699,0.93345477,3244.9,3243.9,0.9420088]
[1767751824123,0.93345477,3244.7,3243.9,0.9420088]
[1767751825927,0.93345477,3245.0,3244.0,0.9420088]
[1767751826106,4.01521383,3244.9,3244.0,1.41555866]
[1767751826306,0.93345477,3244.8,3244.0,4.4981658]
[1767751826629,0.93345477,3244.8,3244.0,1.41555866]
[1767751826925,0.93345477,3244.8,3244.0,4.49817257]
[1767751827441,3.88958184,3245.1,3244.1,0.9420088]
[1767751827442,4.01514121,3245.0,3244.1,0.9420088]
[1767751827730,0.93345477,3244.9,3244.2,1.39182606]
[1767751828832,3.08185404,3244.8,3244.2,1.39182606]
[1767751829014,3.08185404,3244.8,3244.2,0.9420088]
[1767751829214,4.01525931,3244.9,3244.2,0.9420088]
[1767751831933,3.08171137,3245.0,3244.2,0.9420088]
[1767751832734,4.83662601,3245.1,3244.3,0.968365]
[1767751832915,0.001,3244.6,3244.3,0.968365]
[1767751833109,0.001,3244.6,3244.4,0.40507696]
[1767751833422,0.001,3244.6,3244.4,1.37344196]
[1767751833826,0.001,3244.6,3244.5,0.968365]
[1767751835821,0.001,3244.6,3243.9,3.08468557]
[1767751835822,0.9480076,3244.6,3243.9,0.002]
[1767751836008,0.9480076,3244.6,3243.9,0.970365]
[1767751836207,0.9480076,3244.6,3244.0,0.968365]
[1767751836515,0.9480076,3244.6,3244.1,3.08249421]
[1767751837030,0.001,3244.6,3244.3,0.968365]
[1767751837832,0.001,3244.6,3244.0,4.05097729]
[1767751838221,0.001,3244.6,3244.1,0.968365]
[1767751839535,0.001,3244.6,3244.3,0.968365]
[1767751840122,4.83665757,3245.1,3244.4,0.968365]
[1767751840436,0.9470076,3245.3,3244.5,0.968365]
[1767751840758,0.9470076,3245.3,3244.4,0.4050671]
[1767751842028,0.9470076,3245.2,3244.5,3.082139]
[1767751843910,0.9470076,3245.2,3244.4,3.48725409]
[1767751844814,0.9470076,3245.2,3244.4,4.45561909]
[1767751845140,0.001,3244.9,3244.5,0.75379026]
[1767751845341,0.001,3244.9,3244.5,0.968365]
[1767751846619,0.001,3244.9,3244.5,4.0504819]
[1767751847136,0.001,3245.4,3244.5,4.0504819]
[1767751847137,0.001,3245.4,3244.7,0.968365]
[1767751847343,0.9480076,3245.4,3244.7,0.968365]
[1767751848021,4.02931161,3245.4,3244.7,0.968365]
[1767751848547,0.9480076,3245.4,3244.7,0.968365]
[1767751848722,0.9480076,3245.4,3244.7,4.45534133]
[1767751848917,4.02929619,3245.4,3244.7,0.40503382]
[1767751849441,0.9480076,3245.4,3244.7,3.48697885]
[1767751849638,0.9480076,3245.4,3244.7,1.37339882]
[1767751849811,4.02930545,3245.4,3244.7,1.37339882]
[1767751850407,0.9480076,3245.4,3244.8,0.968365]
[1767751850613,0.001,3245.4,3244.8,0.959065]
[1767751850846,0.9480076,3245.4,3244.7,3.08192696]
[1767751851142,0.9470076,3245.3,3244.7,3.08191727]
[1767751851348,0.9470076,3245.3,3244.7,0.71323954]
[1767751851932,0.9470076,3245.3,3244.7,3.79510242]
[1767751852620,0.9470076,3245.3,3244.7,0.71323954]
[1767751852821,0.9470076,3245.3,3244.4,3.08220972]
[1767751853021,0.9470076,3245.3,3244.6,3.08198346]
[1767751854249,0.9470076,3245.3,3244.6,3.08201535]
[1767751854852,0.9470076,3245.3,3244.5,4.05050331]
[1767751855549,0.9470076,3245.3,3244.5,7.13264231]
[1767751855719,0.9470076,3245.3,3244.6,0.71326423]
[1767751855919,0.001,3245.4,3244.7,0.968365]
[1767751856738,0.001,3245.1,3244.7,0.968365]
[1767751857347,0.9480076,3245.1,3244.6,3.79526891]
[1767751857839,0.9480076,3245.1,3244.7,3.08194895]
[1767751858049,0.001,3245.1,3244.8,0.03081854]
[1767751858228,0.001,3245.4,3244.8,0.968365]
[1767751858421,0.9470076,3245.8,3245.1,0.968365]
[1767751859020,0.9470076,3245.8,3245.2,4.04983917]
[1767751859227,1.7550076,3246.2,3245.3,0.968365]
[1767751859453,0.9470076,3246.1,3245.4,1.68149633]
[1767751860765,0.9470076,3246.5,3245.5,0.968365]
[1767751861264,0.9470076,3246.5,3245.7,0.968365]
[1767751861430,0.93940801,3246.9,3245.7,0.968365]
[1767751862256,0.93940801,3246.8,3245.4,0.71313133]
[1767751862474,4.46181646,3246.9,3244.2,0.95727466]
[1767751862475,0.93940801,3246.0,3244.2,0.95727466]
[1767751862676,0.93940801,3245.6,3244.5,0.95727466]
[1767751862854,0.93940801,3245.4,3244.5,0.95727466]
[1767751863231,3.08137922,3245.3,3244.5,4.03938771]
[1767751863443,3.08137922,3245.3,3244.6,0.40393877]
[1767751863652,4.02072714,3245.4,3244.6,0.40393877]
[1767751864056,7.10204627,3245.4,3244.6,0.40393877]
[1767751864256,0.9551023,3245.3,3244.2,4.04014007]
[1767751864444,0.9551023,3245.3,3244.3,3.08232665]
[1767751864645,0.9551023,3245.3,3244.3,4.009233]
[1767751864845,0.9551023,3245.3,3244.4,4.00912128]
[1767751865044,0.9551023,3245.3,3244.5,0.40091213]
[1767751865262,3.08147417,3245.2,3244.5,0.40091213]
[1767751866334,3.08147417,3245.2,3244.4,0.92690635]
[1767751867652,0.807,3245.5,3244.5,0.92690635]
[1767751867653,3.08142273,3245.3,3244.5,0.92690635]
[1767751868533,3.08130713,3245.4,3244.8,0.002]
[1767751868742,0.001,3245.1,3244.8,0.002]
[1767751870938,0.9561023,3245.1,3244.8,0.002]
[1767751871793,0.9551023,3244.9,3244.5,0.002]
[1767751871939,0.9551023,3244.7,3243.9,0.002]
[1767751872764,0.71184305,3244.8,3244.0,0.92690635]
[1767751873071,1.66694535,3244.8,3244.0,0.92690635]
[1767751873243,0.9551023,3244.7,3244.0,0.92690635]
[1767751873650,4.03707056,3244.7,3244.0,0.92690635]
[1767751874368,0.9551023,3244.7,3244.0,0.92690635]
[1767751874842,4.03707043,3244.7,3244.0,0.92690635]
[1767751876164,0.9551023,3244.7,3244.0,0.92690635]
[1767751876566,0.9551023,3244.7,3244.0,4.00951366]
[1767751876768,0.9551023,3244.7,3244.0,0.92690635]
[1767751877568,0.9551023,3244.7,3244.1,0.03082519]
[1767751877740,0.9551023,3244.7,3244.0,4.00950769]
[1767751877941,0.9551023,3244.7,3244.0,4.7189359]
[1767751878265,0.9551023,3244.7,3244.0,1.63633456]
[1767751878470,0.9551023,3244.7,3244.0,0.92690635]
[1767751878964,4.0370643,3244.7,3244.0,0.92690635]
[1767751879744,0.9551023,3244.7,3244.0,4.00951648]
[1767751880647,0.9551023,3244.7,3244.1,0.03082519]
[1767751880847,0.9551023,3244.7,3244.0,4.00951648]
[1767751880848,0.9551023,3244.7,3244.0,0.92690635]
[1767751881747,4.03705879,3244.7,3244.3,0.002]
[1767751881953,4.46528764,3244.7,3244.3,0.002]
[1767751882644,0.9551023,3244.6,3244.3,0.002]
[1767751883945,0.42822885,3244.7,3244.3,0.002]
[1767751884863,1.7631023,3244.8,3244.3,0.002]
[1767751885578,4.84497912,3244.8,3244.3,0.002]
[1767751885758,0.9551023,3244.8,3244.3,0.002]
[1767751886350,0.808,3244.9,3244.3,0.002]
[1767751886674,3.88978895,3244.9,3244.3,0.002]
[1767751886860,8.71943244,3244.9,3244.3,0.002]
[1767751887061,0.9551023,3244.8,3244.3,0.002]
[1767751888472,0.9551023,3244.6,3244.3,0.002]
[1767751890973,3.082139,3244.5,3244.3,0.002]
[1767751891683,0.94306995,3244.4,3243.9,0.002]
[1767751891855,0.94306995,3244.3,3243.4,0.96470598]
[1767751892783,0.94306995,3244.3,3243.5,0.96670598]
[1767751892984,4.02549396,3244.2,3243.5,0.96670598]
[1767751894074,4.02549396,3244.2,3244.0,0.002]
[1767751894284,0.71078711,3244.1,3244.0,0.002]
[1767751895476,3.79330614,3244.1,3244.0,0.002]
[1767751895684,3.79330614,3244.1,3243.5,0.96670598]
[1767751895685,0.94306995,3244.0,3243.2,0.002]
[1767751895878,0.94306995,3244.0,3243.2,0.96670598]
[1767751896864,0.94306995,3244.0,3243.3,0.96470598]
[1767751897782,4.02568753,3244.0,3243.3,0.96470598]
[1767751899081,0.94306995,3243.9,3243.2,0.002]
[1767751899291,4.73675853,3243.8,3243.2,0.002]
[1767751899660,4.73675853,3243.8,3243.2,0.96670598]
[1767751899861,7.8196166,3243.8,3243.2,0.96670598]
[1767751900086,4.73675853,3243.8,3243.2,0.96670598]
[1767751901081,0.71083051,3243.8,3243.2,0.96670598]
[1767751901283,1.75106995,3244.2,3243.3,0.96470598]
[1767751901685,0.94306995,3244.1,3243.3,0.96470598]
[1767751902698,0.94306995,3244.5,3243.4,0.03083184]
[1767751902859,1.75106995,3244.5,3243.5,0.96470598]
[1767751903055,1.75106995,3244.5,3243.7,0.96470598]
[1767751903261,0.808,3244.5,3243.9,0.96470598]
[1767751903681,3.38450773,3244.7,3244.0,0.96470598]
[1767751903682,0.30250159,3244.7,3244.0,0.96470598]
[1767751903886,3.3844743,3244.7,3244.1,0.96470598]
[1767751904694,0.30250159,3244.7,3244.1,0.96470598]
[1767751905185,3.3844691,3244.7,3244.1,0.96470598]
[1767751905489,0.30250159,3244.7,3244.1,0.96470598]
[1767751905892,3.38447239,3244.7,3244.1,0.96470598]
[1767751906193,0.001,3244.2,3244.1,0.96470598]
[1767751906486,0.001,3244.2,3244.1,1.36944516]
[1767751907100,0.30250159,3244.7,3244.1,0.40473918]
[1767751907101,0.94306995,3244.6,3244.1,0.40473918]
[1767751907296,0.30250159,3244.7,3244.2,0.96470598]
[1767751909795,3.38445902,3244.7,3244.2,0.96470598]
[1767751910286,0.30250159,3244.7,3244.2,0.96470598]
[1767751914998,3.38445422,3244.7,3244.2,0.96470598]
[1767751915202,3.38446646,3244.7,3244.2,0.96470598]
[1767751916422,0.73525523,3244.7,3244.2,0.96470598]
[1767751916703,0.30250159,3244.7,3244.2,0.96470598]
[1767751917124,0.30250159,3244.7,3244.3,0.99552927]
[1767751918296,0.30250159,3244.7,3244.3,0.96470598]
[1767751918529,0.001,3244.4,3244.3,0.96470598]
[1767751918892,1.23163008,3244.7,3244.1,3.08247441]
[1767751919138,1.23163008,3244.7,3244.1,3.69899179]
[1767751919290,0.92912849,3244.7,3244.1,3.69899179]
[1767751920090,6.16395071,3244.7,3243.5,3.08308692]
[1767751920292,0.92912849,3244.6,3243.7,3.0828352]
[1767751920522,0.92912849,3244.6,3243.9,0.9374764]
[1767751920713,0.92912849,3244.6,3243.9,4.02018079]
[1767751921297,0.92912849,3244.9,3244.0,1.33949448]
[1767751921491,0.92912849,3244.9,3243.8,0.93134566]
[1767751921694,0.92912849,3244.9,3243.3,0.93134566]
[1767751921916,0.92912849,3244.9,3243.2,0.002]
[1767751922912,0.99708321,3244.9,3243.2,0.002]
[1767751923113,0.91990945,3244.7,3243.2,0.002]
[1767751923315,0.91990945,3244.5,3243.2,0.002]
[1767751925023,0.91990945,3244.5,3243.3,0.93134566]
[1767751925227,0.91990945,3244.3,3243.2,0.002]
[1767751926403,0.91990945,3244.3,3243.3,0.93134566]
[1767751926733,1.6283472,3244.2,3243.3,0.93134566]
[1767751927032,1.72790945,3244.1,3243.3,0.93134566]
[1767751927402,3.08261405,3244.0,3243.3,0.93134566]
[1767751928031,4.0025235,3244.0,3243.3,0.93134566]
[1767751928200,0.91990945,3243.9,3243.2,0.002]
[1767751928543,0.70851376,3243.8,3243.2,0.93334566]
[1767751928701,0.91990945,3244.0,3243.3,0.93134566]
[1767751929540,4.00253025,3244.0,3243.3,0.93134566]
[1767751930045,4.00253025,3244.0,3243.5,0.002]
[1767751934938,7.08515105,3244.0,3243.5,0.002]
[1767751935108,0.91990945,3243.9,3243.5,0.002]
[1767751935308,0.70851511,3243.8,3243.5,0.002]
[1767751935509,3.89054122,3244.1,3243.6,0.93134566]
[1767751935732,3.89054122,3244.1,3243.5,0.002]
[1767751935909,4.81045067,3244.1,3243.5,0.002]
[1767751937127,0.808,3244.1,3243.5,0.96417655]
[1767751937331,0.91990945,3244.0,3243.5,0.002]
[1767751938141,4.0025764,3244.0,3243.5,0.002]
[1767751939845,0.91990945,3243.9,3243.5,0.002]
[1767751940259,0.91990945,3243.8,3243.5,0.002]
[1767751943246,3.08265654,3244.0,3243.5,0.002]
[1767751943556,0.91990945,3244.3,3243.5,0.93334566]
[1767751944321,7.08399747,3244.6,3243.6,0.93134566]
[1767751944543,1.7091092,3244.5,3243.6,0.93134566]
[1767751945256,0.91990945,3244.4,3243.6,0.93134566]
[1767751945442,0.91990945,3244.4,3243.5,0.002]
[1767751946545,0.91990945,3244.2,3243.5,0.002]
[1767751947048,0.808,3244.2,3243.5,0.93334566]
[1767751948850,0.808,3244.2,3243.6,0.93134566]
[1767751950745,0.91990945,3244.1,3243.5,0.002]
[1767751950919,0.91990945,3243.9,3243.5,0.002]
[1767751952238,0.91990945,3243.9,3243.2,0.002]
[1767751952549,0.95383737,3243.6,3242.7,0.002]
[1767751952754,0.95383737,3243.4,3242.7,0.002]
[1767751953123,4.03711674,3243.3,3242.7,0.002]
[1767751953347,0.95383737,3243.2,3242.7,0.002]
[1767751954229,3.08327937,3243.3,3242.7,0.002]
[1767751954429,3.56779104,3243.3,3242.7,0.002]
[1767751954847,0.48451167,3243.3,3242.7,0.002]
[1767751955041,0.48451167,3243.3,3242.7,0.97935734]
[1767751955951,4.37579586,3243.3,3242.7,0.97935734]
[1767751958151,8.41293298,3243.3,3242.7,0.002]
[1767751958381,0.8412933,3243.2,3242.7,0.002]
[1767751958523,1.79513067,3243.2,3242.7,0.002]
[1767751959960,0.8412933,3243.2,3242.7,0.97935734]
[1767751960147,4.37581256,3243.3,3242.7,0.97935734]
[1767751961127,1.29251167,3243.3,3242.7,0.97935734]
[1767751961454,4.37582934,3243.3,3242.7,0.97935734]
[1767751963282,5.32966671,3243.3,3242.7,0.97935734]
[1767751963653,8.41298438,3243.3,3242.7,0.002]
[1767751963852,0.84129844,3243.2,3242.7,0.002]
[1767751964563,4.03730688,3243.1,3242.7,0.002]
[1767751964872,0.84129844,3243.2,3242.7,0.002]
[1767751965074,0.808,3243.3,3242.7,0.97935734]
[1767751965266,0.95383737,3243.5,3242.7,0.97935734]
[1767751965473,0.808,3243.3,3243.0,0.002]
[1767751965877,1.76183737,3243.3,3243.0,0.002]
[1767751966878,4.84512735,3243.3,3243.0,0.002]
[1767751969388,5.63796738,3243.3,3243.0,0.002]
[1767751970768,4.68413001,3243.3,3243.0,0.002]
[1767751971385,7.76741999,3243.3,3243.0,0.002]
[1767751971882,0.95383737,3243.2,3242.6,0.002]
[1767751972052,0.95383737,3243.2,3242.4,0.002]
[1767751972253,0.95383737,3243.0,3242.4,0.002]
[1767751972689,1.62675767,3243.1,3242.4,0.87994719]
[1767751972891,0.95383737,3243.2,3242.4,0.87994719]
[1767751973869,3.08346951,3243.1,3242.4,0.87994719]
[1767751974075,4.03730688,3243.1,3242.4,0.87994719]
[1767751974278,4.84530688,3243.1,3242.4,0.87994719]
[1767751974876,1.76183737,3243.1,3242.4,0.87994719]
[1767751975267,1.76183737,3243.1,3242.5,0.39661405]
[1767751976386,4.84531917,3243.1,3242.5,0.39661405]
[1767751976879,1.76183737,3243.1,3242.5,0.39661405]
[1767751977108,3.08319841,3243.4,3242.6,0.87794719]
[1767751977109,0.808,3243.2,3242.6,0.87794719]
[1767751977449,1.76183737,3243.2,3242.6,0.87794719]
[1767751977651,0.001,3243.0,3242.4,0.87994719]
[1767751977957,0.001,3243.0,3242.5,0.39661307]
[1767751978457,0.001,3243.0,3242.5,1.27456026]
[1767751979357,0.95483737,3243.0,3242.4,0.002]
[1767751980160,0.93882848,3243.0,3242.4,0.002]
[1767751980371,4.03749705,3242.9,3242.4,0.002]
[1767751981291,7.12115673,3242.9,3242.4,0.002]
[1767751981782,3.08365968,3242.9,3242.4,0.002]
[1767751982795,0.96140103,3243.0,3242.4,0.89495608]
[1767751983089,0.96140103,3243.2,3242.4,0.89495608]
[1767751983259,1.76940103,3243.2,3242.5,0.89295608]
[1767751985281,3.08346951,3243.1,3242.5,0.89295608]
[1767751986094,4.85277572,3243.2,3242.5,0.89295608]
[1767751987491,7.93615041,3243.2,3242.5,0.89295608]
[1767751987790,0.90814567,3243.1,3242.4,0.002]
[1767751989297,0.90814567,3242.9,3242.4,0.002]
[1767751990195,3.99185069,3242.9,3242.4,0.002]
[1767751990571,0.90814567,3242.9,3242.4,0.002]
[1767751992193,0.809,3243.0,3242.4,0.89495608]
[1767751992391,0.809,3243.0,3242.4,1.6048006]
[1767751993279,0.001,3243.0,3242.4,1.6048006]
[1767751994202,0.001,3243.0,3242.4,1.63564195]
[1767751994503,0.001,3243.0,3242.4,1.6048006]
[1767751994871,0.001,3243.0,3242.4,0.89495608]
[1767751995706,0.90914567,3243.0,3242.4,0.89495608]
[1767751997502,0.90814567,3243.4,3242.5,0.89295608]
[1767751997716,0.90814567,3243.4,3242.7,0.89295608]
[1767751998075,9.24727203,3244.2,3242.7,0.89295608]
[1767751998076,0.808,3243.7,3242.7,0.89295608]
[1767751998283,0.90814567,3243.6,3242.7,0.89295608]
[1767751998584,0.90814567,3243.6,3242.6,0.89295608]
[1767751998784,0.90814567,3243.6,3242.8,0.89295608]
[1767751999099,0.90814567,3243.9,3243.0,0.95759974]
[1767751999796,0.90814567,3243.9,3242.9,0.70914943]
[1767751999996,0.90814567,3243.9,3243.0,0.95759974]
[1767752000298,0.90814567,3244.5,3243.1,0.95759974]
[1767752000801,0.90814567,3244.3,3243.3,0.95759974]
[1767752000980,0.90814567,3244.3,3243.4,0.71243486]
[1767752001182,0.90814567,3244.3,3243.4,1.6700346]
[1767752002798,7.07223369,3244.6,3243.5,0.95759974]
[1767752002999,0.90814567,3244.5,3243.5,0.95759974]
[1767752004891,4.08996029,3244.7,3243.5,0.95759974]
[1767752004892,0.90814567,3244.3,3243.5,0.95759974]
[1767752005094,0.90814567,3244.3,3243.5,1.1246032]
[1767752005403,0.90814567,3244.3,3243.2,3.08336289]
[1767752005404,0.90814567,3244.1,3243.1,3.08341095]
[1767752005608,0.90814567,3244.1,3243.0,0.807]
[1767752005609,0.90814567,3244.1,3243.2,3.08335123]
[1767752006919,0.90814567,3244.1,3243.2,4.04095097]
[1767752007215,0.90814567,3244.1,3243.3,0.95759974]
[1767752008094,3.89047295,3244.2,3243.3,0.95759974]
[1767752008293,3.89047295,3244.2,3243.5,0.95759974]
[1767752009725,0.2,3244.7,3243.5,0.95759974]
[1767752010045,6.20324887,3244.7,3244.0,0.95759974]
[1767752010184,7.11139454,3244.7,3244.0,0.95759974]
[1767752010506,0.71113945,3244.6,3244.0,0.95759974]
[1767752010885,0.8718128,3244.6,3244.0,0.95759974]
[1767752011708,3.082139,3244.5,3244.0,0.95759974]
[1767752012120,3.95389734,3244.6,3244.0,0.95759974]
[1767752012320,0.16067335,3244.6,3244.0,0.95759974]
[1767752013388,0.001,3244.3,3244.0,0.95759974]
[1767752013923,0.001,3244.3,3243.5,0.99143588]
[1767752014080,0.001,3244.3,3243.6,0.99143588]
[1767752014286,0.998228,3244.3,3243.4,0.99343588]
[1767752014809,0.998228,3244.3,3243.5,1.399102]
[1767752014989,0.001,3244.3,3243.6,0.99143588]
[1767752015309,0.001,3244.3,3243.7,0.99143588]
[1767752016911,0.16067335,3244.2,3243.7,0.99143588]
[1767752017215,0.16067335,3244.2,3243.8,0.99143588]
[1767752018689,0.16067335,3244.2,3243.6,0.99143588]
[1767752018920,1.15790135,3244.2,3243.5,3.49074979]
[1767752019121,0.16067335,3244.2,3243.5,4.48218567]
[1767752019419,0.16067335,3244.2,3243.6,0.99143588]
[1767752019723,0.16067335,3244.2,3243.7,0.99143588]
[1767752020220,0.08580108,3244.2,3244.0,0.99143588]
[1767752021391,0.08580108,3244.2,3243.8,0.99143588]
[1767752021896,0.08580108,3244.2,3243.9,0.99143588]
[1767752022100,0.08580108,3244.2,3244.0,1.39885514]
[1767752023406,0.06170934,3244.2,3244.0,1.39885514]
[1767752023722,0.02155644,3244.2,3244.0,0.40741926]
[1767752023887,0.01081201,3244.2,3244.0,1.39885514]
[1767752024093,0.001,3244.3,3244.2,0.0183695]
[1767752024695,0.03932665,3244.7,3244.2,0.0183695]
[1767752024913,0.03932665,3244.7,3244.2,0.42760899]
[1767752025291,3.08172009,3245.0,3244.2,0.42760899]
[1767752025492,0.997228,3244.9,3244.2,0.42760899]
[1767752027322,0.997228,3244.9,3244.2,3.51000466]
[1767752027817,0.997228,3244.9,3244.2,0.42760899]
[1767752028116,0.997228,3244.8,3244.2,0.42760899]
[1767752028315,0.997228,3244.8,3244.2,0.0183695]
[1767752029131,3.08175963,3244.9,3244.2,0.0183695]
[1767752029132,3.08175963,3244.9,3244.2,1.00980538]
[1767752030313,4.88692939,3245.0,3244.2,1.00980538]
[1767752030693,4.88692939,3245.0,3244.2,4.09222468]
[1767752031005,4.88692939,3245.0,3244.2,1.00980538]
[1767752031204,7.96863078,3245.0,3244.3,0.40922856]
[1767752031421,7.96863078,3245.0,3244.2,1.00980538]
[1767752031917,0.997228,3244.9,3244.2,1.00980538]
[1767752032295,4.07907478,3244.9,3244.2,1.00980538]
[1767752032497,3.08170467,3245.0,3244.3,0.99143588]
[1767752032697,4.07893267,3245.0,3244.3,0.99143588]
[1767752033224,0.997228,3244.9,3244.3,0.99143588]
[1767752033425,0.997228,3244.9,3244.3,1.40066483]
[1767752034596,0.997228,3244.9,3244.2,0.0183695]
[1767752034597,0.997228,3244.8,3244.2,0.0183695]
[1767752034829,0.809,3245.1,3244.4,0.99143588]
[1767752034830,3.08173314,3245.0,3244.4,0.99143588]
[1767752034999,6.16346628,3245.0,3244.4,0.99143588]
[1767752035199,4.07896114,3245.0,3244.4,0.99143588]
[1767752035498,4.07896114,3245.0,3244.2,1.00980538]
[1767752035699,0.997228,3244.9,3244.2,1.41923726]
[1767752035900,0.997228,3244.9,3244.2,1.00980538]
[1767752037837,3.08185404,3244.8,3244.2,1.00980538]
[1767752038039,4.07902958,3244.9,3244.2,1.00980538]
[1767752038239,0.001,3244.7,3244.2,1.00980538]
[1767752039512,0.001,3244.7,3244.2,0.99143588]
[1767752040539,0.001,3244.7,3244.2,1.39903096]
[1767752042448,0.9394955,3244.7,3244.2,0.40759508]
[1767752042625,4.02053951,3244.6,3244.0,0.002]
[1767752043967,0.9384955,3244.6,3244.0,0.002]
[1767752044253,0.001,3244.7,3244.0,0.93923142]
[1767752044642,3.08296365,3244.7,3244.0,0.93923142]
[1767752044978,0.001,3245.1,3244.7,0.93723142]
[1767752045151,3.08010263,3246.7,3245.1,0.79910175]
[1767752045152,0.9384955,3246.4,3245.1,0.79910175]
[1767752045452,0.9384955,3246.6,3245.7,0.79910175]
[1767752045656,0.808,3246.7,3246.0,0.06795472]
[1767752045870,0.20999999,3247.1,3246.0,0.86505647]
[1767752046159,0.20999999,3247.1,3246.2,0.86705647]
[1767752046452,0.95064983,3247.2,3246.2,0.86705647]
[1767752046752,7.59372649,3247.2,3246.2,0.86705647]
[1767752046955,0.95064983,3247.1,3246.2,0.86705647]
[1767752048457,0.95064983,3247.1,3246.2,0.79910175]
[1767752049077,6.15953186,3247.0,3246.2,0.79910175]
[1767752049228,3.07976593,3247.0,3246.2,0.79910175]
[1767752049558,6.15953186,3247.0,3246.2,0.79910175]
[1767752049936,7.11018169,3247.0,3246.2,0.79910175]
[1767752050155,0.95064983,3246.9,3246.0,0.807]
[1767752050462,0.95064983,3246.9,3245.8,1.67405647]
[1767752050649,0.95064983,3246.9,3245.9,0.79910175]
[1767752050961,3.07995564,3246.8,3245.9,3.87990627]
[1767752051160,3.07995564,3246.8,3246.0,0.06795472]
[1767752051457,3.86693266,3246.8,3246.0,0.06795472]
[1767752051844,3.86693266,3246.8,3245.7,0.002]
[1767752051845,0.95064983,3246.7,3245.7,0.002]
[1767752053040,0.95064983,3246.5,3245.7,0.002]
[1767752055556,4.03096616,3246.5,3245.7,0.002]
[1767752055751,4.03096616,3246.5,3245.7,0.03280999]
[1767752056368,4.03096616,3246.5,3245.8,0.03080904]
[1767752056661,0.95064983,3246.5,3245.8,0.03080904]
[1767752056961,4.03094731,3246.5,3245.8,0.03080904]
[1767752058267,4.03094731,3246.5,3245.7,0.03280999]
[1767752058561,0.95064983,3246.5,3245.7,3.11376999]
[1767752059462,4.03091827,3246.5,3245.7,0.83191174]
[1767752059656,4.03091827,3246.5,3245.7,0.80110175]
[1767752059857,0.95064983,3246.5,3245.7,3.8820908]
[1767752060151,0.95064983,3246.5,3245.8,0.03080904]
[1767752060356,4.03095402,3246.5,3245.8,0.03080904]
[1767752061269,4.03095402,3246.5,3245.7,0.80110175]
[1767752061839,4.03095402,3246.5,3245.7,3.88208348]
[1767752062439,0.95064983,3246.5,3245.8,0.03080904]
[1767752062741,4.03075263,3246.7,3245.8,0.89786551]
[1767752062936,0.001,3246.2,3245.9,0.79910175]
[1767752063867,0.001,3246.2,3245.8,0.47283492]
[1767752063868,0.001,3246.2,3245.8,0.4048802]
[1767752064038,0.001,3246.2,3245.7,0.002]
[1767752064445,0.001,3246.2,3245.7,0.80110175]
[1767752064646,0.001,3246.2,3245.8,3.9107901]
[1767752064862,0.001,3246.2,3245.7,0.002]
[1767752065267,0.001,3246.2,3245.7,0.80110175]
[1767752065440,0.001,3246.2,3245.8,3.08090055]
[1767752065640,0.001,3246.2,3245.9,0.39128123]
[1767752065869,0.001,3246.2,3245.7,0.80110175]
[1767752066454,0.001,3246.2,3245.7,3.88209485]
[1767752066980,0.001,3246.2,3245.7,3.88209082]
[1767752067680,0.001,3246.2,3245.8,0.79910175]
[1767752067970,0.001,3246.2,3245.9,0.03080809]
[1767752068879,4.03084077,3246.6,3245.9,1.00825562]
[1767752068880,3.83184077,3246.6,3245.9,1.00825562]
[1767752069055,7.60321587,3246.6,3245.9,1.00825562]
[1767752069376,0.95064983,3246.5,3245.7,0.002]
[1767752069556,0.95064983,3246.5,3245.7,0.094429]
[1767752070142,0.95064983,3246.3,3245.7,0.094429]
[1767752070655,0.95064983,3246.3,3245.4,0.002]
[1767752070851,0.95064983,3246.1,3245.4,0.002]
[1767752071047,0.95064983,3245.9,3244.4,1.04540225]
[1767752071276,4.45618038,3246.0,3244.4,4.12762635]
[1767752071277,0.95064983,3245.7,3244.4,4.12762635]
[1767752071607,0.95064983,3245.7,3244.4,1.04540225]
[1767752072257,0.94744782,3245.5,3244.5,4.03937332]
[1767752072463,0.94744782,3245.5,3244.6,1.05606003]